fUSD/lending_fUSD_20260107
["ID","MTS","AMOUNT","RATE_DAILY","PERIOD"]
[400786109,1767828645900,-901.50125922,0.00016438,2]
[400786111,1767828645917,-901.50125922,0.00016438,2]
[400786113,1767828645938,-901.50125922,0.00016438,2]
[400786115,1767828645949,-901.50125922,0.00016438,2]
[400786117,1767828645959,-1410.04043109,0.00016438,2]
[400786119,1767828645968,-1410.04043109,0.00016438,2]
[400786121,1767828645978,-1410.04043109,0.00016438,2]
[400786123,1767828645994,-1410.04043109,0.00016438,2]
[400786125,1767828646004,-1410.04043109,0.00016438,2]
[400786127,1767828646013,-1410.04043109,0.00016438,2]
[400786129,1767828646023,-1410.04043109,0.00016438,2]
[400786131,1767828646034,-1410.04043109,0.00016438,2]
[400786133,1767828646044,-1410.04043109,0.00016438,2]
[400786135,1767828646054,-1410.04043109,0.00016438,2]
[400786137,1767828646066,-1410.04043109,0.00016438,2]
[400786139,1767828646075,-1410.04043109,0.00016438,2]
[400786141,1767828646084,-1410.04043109,0.00016438,2]
[400786143,1767828646094,-1410.04043109,0.00016438,2]
[400786145,1767828646103,-1410.04043109,0.00016438,2]
[400786147,1767828646113,-1410.04043109,0.00016438,2]
[400786149,1767828646124,-1410.04043109,0.00016438,2]
[400786152,1767828646134,-1410.04043109,0.00016438,2]
[400786154,1767828646143,-1410.04043109,0.00016438,2]
[400786155,1767828646152,-1410.04043109,0.00016438,2]
[400786157,1767828646162,-1410.04043109,0.00016438,2]
[400786159,1767828646171,-1410.04043109,0.00016438,2]
[400786162,1767828646182,-1410.04043109,0.00016438,2]
[400786163,1767828646191,-1410.04043109,0.00016438,2]
[400786166,1767828646201,-1410.04043109,0.00016438,2]
[400786167,1767828646211,-1410.04043109,0.00016438,2]
[400786169,1767828646220,-1410.04043109,0.00016438,2]
[400786172,1767828646230,-1410.04043109,0.00016438,2]
[400786174,1767828646240,-1410.04043109,0.00016438,2]
[400786175,1767828646249,-1410.04043109,0.00016438,2]
[400786178,1767828646259,-1410.04043109,0.00016438,2]
[400786180,1767828646269,-1359.68184427,0.00016438,2]
[400786181,1767828646277,-1359.68184427,0.00016438,2]
[400786184,1767828646287,-1359.68184427,0.00016438,2]
[400786185,1767828646296,-1359.68184427,0.00016438,2]
[400786187,1767828646305,-1359.68184427,0.00016438,2]
[400786190,1767828646315,-1359.68184427,0.00016438,2]
[400786191,1767828646324,-1359.68184427,0.00016438,2]
[400786193,1767828646333,-1359.68184427,0.00016438,2]
[400786195,1767828646343,-1359.68184427,0.00016438,2]
[400786197,1767828646352,-1359.68184427,0.00016438,2]
[400786199,1767828646362,-1359.68184427,0.00016438,2]
[400786201,1767828646371,-1359.68184427,0.00016438,2]
[400786203,1767828646382,-1359.68184427,0.00016438,2]
[400786205,1767828646391,-1359.6818442,0.00016438,2]
[400786208,1767828646401,-800.0,0.00016438,2]
[400786210,1767828646412,-500.0,0.00016454,2]
[400786212,1767828646422,-500.0,0.00016493,2]
[400786214,1767828646432,-500.0,0.00016509,2]
[400786216,1767828646442,-1000.0,0.00016515,2]
[400786218,1767828646452,-367.34,0.0001653,2]
[400786220,1767828646463,-428.98,0.00016536,2]
[400786222,1767828646473,-500.0,0.00016548,2]
[400786224,1767828646482,-787.35487633,0.0001655,2]
[400786226,1767828646492,-500.0,0.00016564,2]
[400786228,1767828646501,-181.06,0.00016567,2]
[400786230,1767828646511,-188.33554362,0.00016602,2]
[400786232,1767828646520,-547.68,0.00016613,2]
[400786234,1767828646531,-500.0,0.00016619,2]
[400786236,1767828646540,-151.0,0.00016626,2]
[400786238,1767828646551,-595.37131296,0.00016626,2]
[400786240,1767828646560,-154.16307501,0.00016626,2]
[400786242,1767828646570,-500.0,0.00016643,2]
[400786244,1767828646580,-500.0,0.00016643,2]
[400786246,1767828646591,-500.0,0.00016643,2]
[400786248,1767828646601,-628.50709886,0.00016643,2]
[400786250,1767828646612,-500.0,0.00016643,2]
[400786252,1767828646622,-500.0,0.00016643,2]
[400786254,1767828646631,-336.03289894,0.00016643,2]
[400786256,1767828646641,-500.0,0.00016674,2]
[400786258,1767828646651,-1755.28,0.00016712,2]
[400786260,1767828646660,-569.18,0.00016716,2]
[400786262,1767828646670,-2000.0,0.00016716,2]
[400786264,1767828646679,-1500.0,0.00016716,2]
[400786266,1767828646689,-500.0,0.00016716,2]
[400786268,1767828646699,-2000.0,0.00016716,2]
[400786270,1767828646708,-2000.0,0.00016716,2]
[400786272,1767828646719,-1176.00349903,0.00016716,2]
[400786274,1767828646730,-2000.0,0.00016716,2]
[400786276,1767828646739,-2000.0,0.00016716,2]
[400786279,1767828646749,-2000.0,0.00016716,2]
[400786281,1767828646759,-500.0,0.00016728,2]
[400786283,1767828646768,-500.0,0.00016783,2]
[400786285,1767828646778,-500.0,0.00016838,2]
[400786287,1767828646787,-1322.49512859,0.00016854,2]
[400786289,1767828646797,-406.89851448,0.00016893,2]
[400786290,1767828646807,-157.15193471,0.00016914,2]
[400786293,1767828646817,-522.24,0.00016944,2]
[400786295,1767828646827,-619.51019964,0.0001698,2]
[400786297,1767828646836,-1755.28,0.00016986,2]
[400786299,1767828646846,-50734.67,0.00016986,2]
[400786301,1767828646856,-500.001539,0.00017,2]
[400786303,1767828646865,-1000.0,0.00017112,2]
[400786305,1767828646876,-736.0,0.0001712,2]
[400786307,1767828646886,-617.40005154,0.00017174,2]
[400786309,1767828646896,-304.2281947,0.00017181,2]
[400786311,1767828646905,-1000.0,0.00017191,2]
[400786313,1767828646915,-222.95362607,0.00017191,2]
[400786315,1767828646924,-181.06,0.00017233,2]
[400786317,1767828646934,-367.34,0.00017248,2]
[400786319,1767828646944,-1755.28,0.0001726,2]
[400786321,1767828646953,-827.5,0.0001726,2]
[400786323,1767828646962,-2500.0,0.00017264,2]
[400786325,1767828646972,-2500.0,0.00017264,2]
[400786327,1767828646982,-870.47980866,0.00017264,2]
[400786329,1767828646995,-2005.38555235,0.00017264,2]
[400786331,1767828647006,-2500.0,0.00017264,2]
[400786333,1767828647015,-450.0,0.00017334,2]
[400786335,1767828647025,-500.0,0.00017342,2]
[400786337,1767828647034,-165.0,0.0001736,2]
[400786339,1767828647044,-450.0,0.0001736,2]
[400786342,1767828647053,-450.0,0.00017371,2]
[400786344,1767828647063,-1241.95354039,0.00017374,2]
[400786356,1767828647170,-1322.49512859,0.00017377,2]
[400786358,1767828647180,-1688.95959214,0.00017384,2]
[400786361,1767828647191,-1000.0,0.000174,2]
[400786363,1767828647200,-334.5472959,0.00017447,2]
[400786364,1767828647211,-642.94,0.00017447,2]
[400786366,1767828647222,-287.61899177,0.00017447,2]
[400786368,1767828647232,-2000.0,0.000175,2]
[400786371,1767828647242,-1600.70015005,0.000175,2]
[400786373,1767828647251,-5453.0,0.00017507,2]
[400786375,1767828647261,-157.15193471,0.00017518,2]
[400786377,1767828647270,-1755.28,0.00017534,2]
[400786379,1767828647279,-240.82358149,0.00017534,2]
[400786381,1767828647289,-161.58,0.00017548,2]
[400786383,1767828647299,-565.0,0.00017548,2]
[400786385,1767828647308,-6551.0,0.00017548,2]
[400786387,1767828647317,-4936.02146803,0.0001764,2]
[400786389,1767828647327,-634.29540262,0.00017681,2]
[400786391,1767828647336,-661.33,0.00017694,2]
[400786393,1767828647346,-661.33,0.00017694,2]
[400786395,1767828647355,-661.33,0.00017694,2]
[400786397,1767828647364,-954.05,0.00017707,2]
[400786399,1767828647374,-1000.0,0.00017709,2]
[400786401,1767828647384,-189.05,0.00017714,2]
[400786403,1767828647393,-640.24385345,0.00017722,2]
[400786405,1767828647403,-150.0,0.00017726,2]
[400786407,1767828647412,-178.03708143,0.00017726,2]
[400786409,1767828647422,-174.06741652,0.00017726,2]
[400786411,1767828647433,-450.04111853,0.00017739,2]
[400786413,1767828647443,-25000.0,0.00017742,3]
[400786415,1767828647452,-25000.0,0.0001775,3]
[400786417,1767828647461,-823.0,0.00017754,2]
[400786419,1767828647471,-569.18,0.00017758,2]
[400786421,1767828647480,-25000.0,0.00017759,3]
[400786423,1767828647489,-150.0,0.00017764,2]
[400786425,1767828647498,-171.3,0.00017764,2]
[400786427,1767828647508,-25000.0,0.00017768,3]
[400786429,1767828647517,-25000.0,0.00017777,3]
[400786431,1767828647527,-271.23482998,0.00017781,2]
[400786433,1767828647536,-25000.0,0.00017786,3]
[400786435,1767828647546,-634.2954026,0.00017791,2]
[400786437,1767828647556,-25000.0,0.00017794,3]
[400786439,1767828647566,-1000.0,0.000178,2]
[400786441,1767828647575,-25000.0,0.00017803,3]
[400786443,1767828647584,-1755.38654479,0.00017808,2]
[400786445,1767828647594,-250.0,0.00017808,3]
[400786447,1767828647604,-25000.0,0.00017812,3]
[400786449,1767828647614,-2000.0,0.00017812,2]
[400786451,1767828647624,-3000.0,0.00017812,2]
[400786453,1767828647634,-3000.0,0.00017812,2]
[400786454,1767828647643,-250.0,0.00017814,2]
[400786455,1767828647653,-500.0,0.00017819,2]
[400786456,1767828647662,-500.0,0.00017819,2]
[400786457,1767828647673,-569.18,0.0001782,2]
[400786458,1767828647683,-2035.60118,0.0001782,2]
[400786459,1767828647692,-2035.60119,0.0001782,2]
[400786460,1767828647702,-25000.0,0.00017821,3]
[400786461,1767828647712,-10000.0,0.00017822,2]
[400786462,1767828647723,-348.16,0.00017825,2]
[400786463,1767828647732,-25000.0,0.0001783,3]
[400786464,1767828647742,-2035.60118,0.0001783,2]
[400786466,1767828647751,-25000.0,0.00017838,3]
[400786468,1767828647761,-348.16,0.00017844,2]
[400786470,1767828647771,-25000.0,0.00017847,3]
[400786472,1767828647783,-151.0,0.00017853,2]
[400786474,1767828647795,-200.0,0.00017855,2]
[400786476,1767828647812,-200.0,0.00017856,2]
[400786478,1767828647821,-25000.0,0.00017856,3]
[400786480,1767828647830,-200.0,0.00017856,2]
[400786482,1767828647840,-200.0,0.00017856,2]
[400786484,1767828647849,-2035.60119,0.0001786,2]
[400786486,1767828647859,-450.0,0.00017863,2]
[400786488,1767828647869,-348.1580778,0.00017863,2]
[400786490,1767828647879,-25000.0,0.00017865,3]
[400786492,1767828647889,-25000.0,0.00017874,3]
[400786494,1767828647898,-2035.60119,0.0001788,2]
[400786496,1767828647907,-25000.0,0.00017882,3]
[400786498,1767828647916,-500.0,0.00017888,2]
[400786500,1767828647925,-500.0,0.00017888,2]
[400786502,1767828647934,-177198.0027176,0.00017889,2]
[400786504,1767828647943,-569.18,0.0001789,2]
[400786506,1767828647953,-25000.0,0.00017891,3]
[400786508,1767828647962,-25000.0,0.000179,3]
[400786510,1767828647971,-1322.49512859,0.000179,2]
[400786512,1767828647980,-634.2954026,0.000179,2]
[400786513,1767828647995,-6334.39462442,0.000179,2]
[400786516,1767828648006,-181.45660226,0.000179,2]
[400786517,1767828648015,-12291.40483668,0.000179,2]
[400786520,1767828648025,-10740.0,0.000179,2]
[400786522,1767828648035,-262.00155402,0.00017903,2]
[400786523,1767828648044,-500.0,0.00017903,2]
[400786525,1767828648054,-500.0,0.00017903,2]
[400786528,1767828648065,-500.0,0.00017903,2]
[400786530,1767828648075,-500.0,0.00017903,2]
[400786531,1767828648085,-500.0,0.00017903,2]
[400786534,1767828648095,-500.0,0.00017903,2]
[400786536,1767828648105,-500.0,0.00017903,2]
[400786538,1767828648116,-500.0,0.00017903,2]
[400786540,1767828648127,-500.0,0.00017903,2]
[400786542,1767828648136,-712.35402677,0.00017906,2]
[400786544,1767828648146,-17.57298495,0.00017907,2]
[400786545,1767828648155,-2035.60118,0.0001791,2]
[400786547,1767828648165,-795.60876204,0.00017918,2]
[400786549,1767828648174,-8419.4940421,0.00017926,2]
[400786552,1767828648184,-3292.0,0.00017943,2]
[400786553,1767828648194,-181.06,0.0001796,2]
[400786555,1767828648204,-367.34,0.00017967,2]
[400786558,1767828648214,-500.0,0.0001797,2]
[400786559,1767828648223,-500.0,0.0001797,2]
[400786561,1767828648232,-500.0,0.0001797,2]
[400786563,1767828648241,-500.0,0.0001797,2]
[400786565,1767828648251,-500.0,0.0001797,2]
[400786567,1767828648260,-983.46328676,0.0001797,2]
[400786569,1767828648269,-1000.0,0.0001797,2]
[400786571,1767828648280,-1000.0,0.0001797,2]
[400786573,1767828648289,-1000.0,0.0001797,2]
[400786575,1767828648299,-1000.0,0.0001797,2]
[400786577,1767828648308,-1000.0,0.0001797,2]
[400786579,1767828648318,-1000.0,0.0001797,2]
[400786581,1767828648328,-1000.0,0.0001797,2]
[400786583,1767828648338,-1000.0,0.0001797,2]
[400786585,1767828648348,-1000.0,0.0001797,2]
[400786587,1767828648358,-1000.0,0.0001797,2]
[400786589,1767828648369,-1244.02944176,0.0001797,2]
[400786591,1767828648379,-150.0,0.00017973,2]
[400786593,1767828648388,-150.0,0.00017973,2]
[400786595,1767828648397,-500.0,0.00017982,2]
[400786597,1767828648407,-1049.50976067,0.0001799,2]
[400786599,1767828648417,-1049.50976067,0.0001799,2]
[400786601,1767828648427,-469.35951707,0.00017995,2]
[400786603,1767828648436,-151.0,0.00017997,2]
[400786605,1767828648445,-300.0,0.00017999,2]
[400786607,1767828648455,-500.0,0.00017999,2]
[400786608,1767828648465,-500.0,0.00017999,2]
[400786611,1767828648475,-500.0,0.00017999,2]
[400786612,1767828648485,-500.0,0.00017999,2]
[400786614,1767828648494,-500.0,0.00017999,2]
[400786617,1767828648504,-450.63605817,0.00017999,2]
[400786619,1767828648513,-500.0,0.00017999,2]
[400786621,1767828648523,-500.0,0.00017999,2]
[400786622,1767828648532,-500.0,0.00017999,2]
[400786624,1767828648542,-500.0,0.00017999,2]
[400786626,1767828648551,-500.0,0.00017999,2]
[400786628,1767828648561,-500.0,0.00017999,2]
[400786630,1767828648571,-500.0,0.00017999,2]
[400786632,1767828648581,-174.14927633,0.00017999,2]
[400786634,1767828648590,-569.18,0.00017999,2]
[400786636,1767828648599,-569.18,0.00017999,2]
[400786638,1767828648608,-569.18,0.00017999,2]
[400786641,1767828648618,-569.18,0.00017999,2]
[400786642,1767828648628,-569.18,0.00017999,2]
[400786645,1767828648638,-569.18,0.00017999,2]
[400786646,1767828648647,-569.18,0.00017999,2]
[400786648,1767828648656,-569.18,0.00017999,2]
[400786650,1767828648666,-569.18,0.00017999,2]
[400786653,1767828648675,-569.18,0.00017999,2]
[400786654,1767828648684,-569.18,0.00017999,2]
[400786656,1767828648694,-569.18,0.00017999,2]
[400786658,1767828648703,-569.33652128,0.00017999,2]
[400786661,1767828648713,-300.0,0.00017999,2]
[400786663,1767828648723,-666.0,0.00017999,2]
[400786665,1767828648733,-300.0,0.00017999,2]
[400786667,1767828648742,-500.0,0.00017999,2]
[400786669,1767828648751,-206.2528324,0.00017999,2]
[400786671,1767828648761,-500.0,0.00017999,2]
[400786673,1767828648771,-500.0,0.00017999,2]
[400786675,1767828648780,-319.8416144,0.00017999,2]
[400786677,1767828648789,-500.0,0.00017999,2]
[400786679,1767828648798,-177.13628459,0.00017999,2]
[400786680,1767828648807,-500.0,0.00017999,2]
[400786682,1767828648816,-500.0,0.00017999,2]
[400786685,1767828648827,-500.0,0.00017999,2]
[400786687,1767828648836,-500.0,0.00017999,2]
[400786689,1767828648845,-500.0,0.00017999,2]
[400786690,1767828648855,-500.0,0.00017999,2]
[400786692,1767828648865,-500.0,0.00017999,2]
[400786694,1767828648875,-400.58303632,0.00017999,2]
[400786697,1767828648884,-500.0,0.00017999,2]
[400786698,1767828648894,-500.0,0.00017999,2]
[400786700,1767828648904,-500.0,0.00017999,2]
[400786702,1767828648915,-506.42348911,0.00017999,2]
[400786704,1767828648926,-500.0,0.00017999,2]
[400786706,1767828648936,-300.0,0.00017999,2]
[400786709,1767828648946,-508.99338834,0.00017999,2]
[400786710,1767828648955,-666.0,0.00017999,2]
[400786712,1767828648965,-300.0,0.00017999,2]
[400786715,1767828648975,-500.0,0.00017999,2]
[400786717,1767828648988,-500.0,0.00017999,2]
[400786719,1767828648998,-500.0,0.00017999,2]
[400786721,1767828649008,-419.33594592,0.00017999,2]
[400786723,1767828649017,-500.0,0.00017999,2]
[400786725,1767828649026,-500.0,0.00017999,2]
[400786727,1767828649036,-500.0,0.00017999,2]
[400786729,1767828649045,-500.0,0.00017999,2]
[400786731,1767828649054,-300.0,0.00017999,2]
[400786733,1767828649063,-666.0,0.00017999,2]
[400786735,1767828649073,-5826.21400436,0.00017999,2]
[400786737,1767828649082,-316752.21821992,0.00018,2]
[400786812,1767828649795,-6049082.8018729,0.00018,2]
[400786814,1767828649808,-863.28336146,0.00018,2]
[400786816,1767828649819,-1099.0,0.00018,2]
[400786819,1767828649838,-19401.84860108,0.00018,2]
[400786821,1767828649850,-2754.74062376,0.00018,2]
[400786824,1767828649861,-34156.12889018,0.00018,2]
[400786826,1767828649872,-40338.20066495,0.00018,2]
[400786828,1767828649885,-2416.06200004,0.00018,2]
[400786848,1767828650135,-273.79554196,0.00014999,2]
[400786849,1767828650147,-376.20445804,0.00014999,2]
[400786850,1767828650157,-542.21018207,0.00015218,2]
[400786852,1767828650182,-436.78981793,0.00015218,2]
[400786854,1767828650191,-787.35487633,0.00016887,2]
[400786856,1767828650201,-200.0,0.00017174,2]
[400786858,1767828650210,-787.35487633,0.00017225,2]
[400786860,1767828650220,-787.35487633,0.00017562,2]
[400786862,1767828650230,-787.35487633,0.000179,2]
[400786864,1767828650240,-7499.50737456,0.00018,2]
[400786866,1767828650252,-2621.37599099,0.00018,2]
[400786868,1767828650264,-990.88773711,0.00018,2]
[400786982,1767828651368,-256.7921,0.00013982,2]
[400786983,1767828651395,-4553.30710726,0.00013982,2]
[400786984,1767828651407,-9441.80973735,0.00013982,2]
[400786985,1767828651419,-1849.56294505,0.00013982,2]
[400787014,1767828651914,-666.106399,0.00013982,2]
[400787015,1767828651927,-2687.45464366,0.00013982,2]
[400787016,1767828651936,-543.4022175,0.00015054,2]
[400787388,1767828685224,-407.47958521,0.0001359,2]
[400787389,1767828685249,-500.0,0.0001359,2]
[400787390,1767828685276,-17.00878713,0.0001359,2]
[400787391,1767828689038,-170.32348709,0.0001359,2]
[400787392,1767828691940,-64.72813775,0.0001359,2]
[400787393,1767828691966,-223.17976151,0.0001359,2]
[400787394,1767828691990,-12.09210074,0.0001359,2]
[400787395,1767828694173,-300.0,0.0001359,2]
[400787396,1767828696046,-187.90789926,0.0001359,2]
[400787397,1767828696074,-171.34269092,0.0001359,2]
[400787398,1767828698680,-162.41020136,0.0001359,2]
[400787399,1767828700162,-257.47850945,0.0001359,2]
[400787400,1767828700187,-25.11128919,0.00013592,2]
[400787401,1767828703162,-300.0,0.00013592,2]
[400787402,1767828705268,-300.0,0.00013592,2]
[400787403,1767828706357,-181.83775549,0.00013592,2]
[400787404,1767828707855,-406.03393071,0.00013592,2]
[400787405,1767828711547,-541.52721557,0.00013592,2]
[400787406,1767828716099,-166.869786,0.00013592,2]
[400787407,1767828721642,-303.73131223,0.00013592,2]
[400787408,1767828746357,-322.16513308,0.00013592,2]
[400787409,1767828749351,-303.91570653,0.00013591,2]
[400787410,1767828751014,-195.0,0.00013591,2]
[400787411,1767828808599,-500.0,0.0001359,2]
[400787412,1767828808685,-500.0,0.0001359,2]
[400787413,1767828808765,-500.0,0.0001359,2]
[400787414,1767828808855,-500.0,0.0001359,2]
[400787415,1767828808938,-500.0,0.0001359,2]
[400787416,1767828809019,-500.0,0.0001359,2]
[400787417,1767828809112,-500.0,0.0001359,2]
[400787418,1767828809198,-185.52798765,0.0001359,2]
[400787419,1767828809273,-300.0,0.0001359,2]
[400787420,1767828809358,-150.0,0.0001359,2]
[400787421,1767828810668,-1966.29692808,0.00013591,2]
[400787422,1767828810735,-168.91999983,0.00013591,2]
[400787423,1767828811401,-10000.01,0.00013591,2]
[400787424,1767828811656,-10000.01,0.00013591,2]
[400787425,1767828814557,-10000.01,0.00013591,2]
[400787426,1767828835292,-165.54,0.00013492,2]
[400787433,1767829141574,-2619.69,0.00013426,2]
[400787434,1767829141642,-200.0,0.00013446,2]
[400787435,1767829141710,-172.94141265,0.00013491,2]
[400787436,1767829141774,-250.0,0.00013492,2]
[400787437,1767829142067,-3514.7471747,0.00013492,2]
[400787439,1767829205814,-150.0,0.00013491,2]
[400787440,1767829205932,-1200.0,0.00013491,2]
[400787441,1767829206053,-300.0,0.00013491,2]
[400787442,1767829206162,-261.0,0.00013491,2]
[400787443,1767829206715,-6178.01,0.00013492,2]
[400787444,1767829212020,-2549.6777882,0.00013492,2]
[400787445,1767829212338,-4900.6544236,0.00013492,2]
[400787448,1767829375790,1000.0,0.0003287,120]
[400787450,1767829398464,516.0,0.0003287,120]
[400787451,1767829410155,550.0,0.0003287,120]
[400787452,1767829423931,500.0,0.0003287,120]
[400787453,1767829474715,-10000.01,0.00013387,2]
[400787454,1767829483546,-10000.01,0.00013387,2]
[400787455,1767829494721,333.17,6.81e-05,2]
[400787456,1767829495156,333.17,7.154e-05,2]
[400787457,1767829495561,333.17,7.499e-05,2]
[400787458,1767829495760,333.17,7.843e-05,2]
[400787459,1767829495965,333.17,8.187e-05,2]
[400787460,1767829496166,333.17,8.532e-05,2]
[400787461,1767829496575,333.17,8.876e-05,2]
[400787462,1767829496785,333.17,9.22e-05,2]
[400787463,1767829496987,333.17,9.565e-05,2]
[400787464,1767829497178,333.17,9.909e-05,2]
[400787465,1767829497388,333.17,0.00010253,2]
[400787466,1767829497819,333.17,0.00010598,2]
[400787467,1767829498030,257.31014396,0.00010942,2]
[400787468,1767829498053,75.85985604,0.00010942,2]
[400787469,1767829498254,333.17,0.00011286,2]
[400787470,1767829498928,333.17,0.00011631,2]
[400787471,1767829499149,333.17,0.00011975,2]
[400787472,1767829499388,333.17,0.00012319,2]
[400787473,1767829499600,333.17,0.00012664,2]
[400787474,1767829510350,-165.54985788,0.00013008,2]
[400787475,1767829570869,-167.62014212,0.00013008,2]
[400787476,1767829570894,-16.36167694,0.00013063,2]
[400787477,1767829573627,-328.48687118,0.00013063,2]
[400787478,1767829576203,-157.9150788,0.00013063,2]
[400787479,1767829576229,-13.59805002,0.00013353,2]
[400787480,1767829640062,-252.5,0.0001333,2]
[400787481,1767829640133,-319.57194998,0.00013353,2]
[400787482,1767829640204,-3590.26,0.00013387,2]
[400787483,1767829640278,-213.35471522,0.00013391,2]
[400787484,1767829640353,-213.35471522,0.00013437,2]
[400787485,1767829640429,-213.35471522,0.00013483,2]
[400787486,1767829640504,-95.21780872,0.0001349,2]
[400787487,1767829641036,-204.78219128,0.0001349,2]
[400787488,1767829642907,-1200.0,0.0001349,2]
[400787489,1767829642981,-150.0,0.0001349,2]
[400787490,1767829643055,-300.0,0.0001349,2]
[400787491,1767829643143,-500.0,0.00013491,2]
[400787492,1767829643214,-500.0,0.00013491,2]
[400787493,1767829643299,-500.0,0.00013491,2]
[400787494,1767829643386,-500.0,0.00013491,2]
[400787495,1767829643471,-500.0,0.00013491,2]
[400787496,1767829643560,-500.0,0.00013491,2]
[400787497,1767829643651,-200.01,0.00013491,2]
[400787501,1767829645386,-299.99,0.00013491,2]
[400787502,1767829646265,-500.0,0.00013491,2]
[400787503,1767829646347,-500.0,0.00013491,2]
[400787504,1767829646432,-500.0,0.00013491,2]
[400787505,1767829646522,-500.0,0.00013491,2]
[400787506,1767829646615,-500.0,0.00013491,2]
[400787507,1767829646706,-500.0,0.00013491,2]
[400787508,1767829646791,-500.0,0.00013491,2]
[400787509,1767829646869,-500.0,0.00013491,2]
[400787510,1767829646948,-500.0,0.00013491,2]
[400787511,1767829647024,-500.0,0.00013491,2]
[400787512,1767829647787,-0.01,0.00013491,2]
[400787513,1767829649086,-499.99,0.00013491,2]
[400787514,1767829649173,-500.0,0.00013491,2]
[400787515,1767829649263,-500.0,0.00013491,2]
[400787516,1767829649352,-500.0,0.00013491,2]
[400787517,1767829649447,-500.0,0.00013491,2]
[400787518,1767829649540,-500.0,0.00013491,2]
[400787519,1767829649632,-500.0,0.00013491,2]
[400787520,1767829649720,-500.0,0.00013491,2]
[400787521,1767829649803,-500.0,0.00013491,2]
[400787522,1767829649885,-385.44686922,0.00013491,2]
[400787523,1767829650677,-229.13626156,0.00013491,2]
[400787524,1767829688679,505.209608,7.945e-05,2]
[400787536,1767829778899,-317.41,0.00013419,2]
[400787537,1767829778979,-150.0,0.0001349,2]
[400787538,1767829779063,-300.0,0.0001349,2]
[400787539,1767829779131,-300.0,0.0001349,2]
[400787540,1767829779203,-384.10059426,0.0001349,2]
[400787541,1767829779267,-497.17735701,0.00013491,2]
[400787542,1767829779333,-497.17735701,0.00013491,2]
[400787543,1767829779397,-497.17735701,0.00013491,2]
[400787544,1767829779475,-500.0,0.00013491,2]
[400787545,1767829779556,-500.0,0.00013491,2]
[400787546,1767829779632,-500.0,0.00013491,2]
[400787547,1767829779707,-500.0,0.00013491,2]
[400787549,1767829780286,-500.0,0.00013491,2]
[400787550,1767829780355,-500.0,0.00013491,2]
[400787551,1767829780429,-338.45454275,0.00013491,2]
[400787554,1767829781012,-113.92466942,0.00013491,2]
[400787555,1767829781076,-7323.1009145,0.00013491,2]
[400787556,1767829781158,-2422.15320897,0.00013491,2]
[400787557,1767829781229,-5155.70358206,0.00013491,2]
[400787558,1767829781238,-500.0,0.00013491,2]
[400787559,1767829781247,-500.0,0.00013491,2]
[400787560,1767829781256,-404.67030671,0.00013492,2]
[400787561,1767829781266,-1017.48290226,0.00013492,2]
[400787562,1767829781334,-446.42861618,0.00013492,2]
[400787563,1767829781343,-860.57,0.00013561,2]
[400787564,1767829781352,-1000.0,0.00013582,2]
[400787565,1767829781362,-7693.01138382,0.00013583,2]
[400787567,1767829781424,-2306.97861618,0.00013583,2]
[400787568,1767829781433,-5270.87817485,0.00013583,2]
[400787569,1767829781520,-10000.01,0.00013583,2]
[400787570,1767829781597,-3054.55817485,0.00013583,2]
[400787571,1767829781666,-3890.8936503,0.00013583,2]
[400787572,1767829782530,-210.22252446,0.00013583,2]
[400787574,1767829784795,-10000.01,0.00013583,2]
[400787576,1767829785238,-2675.26252446,0.00013583,2]